fUSD/lending_fUSD_20260218
["ID","MTS","AMOUNT","RATE_DAILY","PERIOD"]
[405923375,1771416649339,-1000.0,0.0001405,2]
[405923376,1771416649348,-2000.0,0.0001405,2]
[405923377,1771416649357,-1000.0,0.0001405,2]
[405923378,1771416649366,-500.0,0.0001405,2]
[405923379,1771416649375,-2000.0,0.0001405,2]
[405923380,1771416649385,-1000.0,0.0001405,2]
[405923381,1771416649394,-1000.0,0.0001405,2]
[405923382,1771416649404,-2000.0,0.0001405,2]
[405923383,1771416649413,-1000.0,0.0001405,2]
[405923384,1771416649423,-2000.0,0.0001405,2]
[405923385,1771416649432,-2000.0,0.0001405,2]
[405923386,1771416649441,-2000.0,0.0001405,2]
[405923387,1771416649450,-600.0,0.0001405,2]
[405923388,1771416649460,-600.0,0.0001405,2]
[405923389,1771416649469,-600.0,0.0001405,2]
[405923390,1771416649478,-600.0,0.0001405,2]
[405923391,1771416649487,-600.0,0.0001405,2]
[405923392,1771416649496,-600.0,0.0001405,2]
[405923393,1771416649506,-600.0,0.0001405,2]
[405923394,1771416649515,-500.0,0.0001405,2]
[405923395,1771416649524,-600.0,0.0001405,2]
[405923396,1771416649755,-600.0,0.0001405,2]
[405923397,1771416649772,-600.0,0.0001405,2]
[405923398,1771416649784,-500.0,0.0001405,2]
[405923399,1771416649798,-600.0,0.0001405,2]
[405923400,1771416649807,-500.0,0.0001405,2]
[405923401,1771416649816,-600.0,0.0001405,2]
[405923402,1771416649825,-500.0,0.0001405,2]
[405923403,1771416649834,-600.0,0.0001405,2]
[405923404,1771416649843,-500.0,0.0001405,2]
[405923405,1771416649853,-500.0,0.0001405,2]
[405923406,1771416649862,-500.0,0.0001405,2]
[405923407,1771416649872,-500.0,0.0001405,2]
[405923408,1771416649883,-500.0,0.0001405,2]
[405923409,1771416649892,-976.2,0.00014246,2]
[405923410,1771416649904,-976.2,0.00014246,2]
[405923411,1771416649915,-976.2,0.00014246,2]
[405923412,1771416649926,-976.2,0.00014246,2]
[405923413,1771416649936,-976.28011377,0.00014246,2]
[405923414,1771416649947,-1143.08,0.00014246,2]
[405923415,1771416649957,-1143.08,0.00014246,2]
[405923416,1771416649967,-1143.08,0.00014246,2]
[405923417,1771416649978,-1143.08,0.00014246,2]
[405923418,1771416649988,-1143.08802075,0.00014246,2]
[405923419,1771416649999,-1003.02217796,0.00014247,2]
[405923420,1771416650009,-1000.0,0.00014247,2]
[405923421,1771416650019,-1000.0,0.00014247,2]
[405923422,1771416650030,-1000.0,0.00014247,2]
[405923423,1771416650042,-1000.0,0.00014247,2]
[405923424,1771416650051,-1000.0,0.00014247,2]
[405923425,1771416650060,-1000.0,0.00014247,2]
[405923426,1771416650073,-1000.0,0.00014247,2]
[405923427,1771416650082,-1000.0,0.00014247,2]
[405923428,1771416650091,-1000.0,0.00014247,2]
[405923429,1771416650101,-1000.0,0.00014247,2]
[405923430,1771416650110,-1000.0,0.00014247,2]
[405923431,1771416650120,-1000.0,0.00014247,2]
[405923432,1771416650130,-1000.0,0.00014247,2]
[405923433,1771416650141,-1000.0,0.00014247,2]
[405923434,1771416650151,-1000.0,0.00014247,2]
[405923435,1771416650160,-1003.65271303,0.00014247,2]
[405923436,1771416650169,-1000.0,0.00014247,2]
[405923437,1771416650179,-1000.0,0.00014247,2]
[405923438,1771416650195,-336.6867508,0.00014247,2]
[405923439,1771416650207,-1000.0,0.00014247,2]
[405923440,1771416650216,-1000.0,0.00014247,2]
[405923441,1771416650225,-501.83349553,0.00014247,2]
[405923442,1771416650234,-1000.0,0.00014247,2]
[405923443,1771416650244,-1000.0,0.00014247,2]
[405923444,1771416650254,-1000.0,0.00014247,2]
[405923445,1771416650264,-1067.47328951,0.00014247,2]
[405923446,1771416650275,-1000.0,0.00014247,2]
[405923447,1771416650286,-1000.0,0.00014247,2]
[405923448,1771416650297,-1000.0,0.00014247,2]
[405923449,1771416650307,-1000.0,0.00014247,2]
[405923450,1771416650318,-1000.0,0.00014247,2]
[405923451,1771416650329,-1000.0,0.00014247,2]
[405923452,1771416650340,-552.89419638,0.00014247,2]
[405923453,1771416650350,-1000.0,0.00014247,2]
[405923454,1771416650359,-1000.0,0.00014247,2]
[405923455,1771416650370,-1000.0,0.00014247,2]
[405923456,1771416650380,-1000.0,0.00014247,2]
[405923457,1771416650391,-1000.0,0.00014247,2]
[405923458,1771416650402,-503.21395664,0.00014247,2]
[405923459,1771416650412,-1000.0,0.00014247,2]
[405923460,1771416650421,-1000.0,0.00014247,2]
[405923461,1771416650430,-1000.0,0.00014247,2]
[405923462,1771416650440,-1000.0,0.00014247,2]
[405923463,1771416650451,-1000.0,0.00014247,2]
[405923464,1771416650462,-1001.64879923,0.00014247,2]
[405923465,1771416650472,-1000.0,0.00014247,2]
[405923466,1771416650482,-2251.56583335,0.00014289,2]
[405923467,1771416650492,-193.70452932,0.00014314,2]
[405923468,1771416650501,-25949.63612918,0.00014461,2]
[405923469,1771416650512,-60330.40230329,0.00014595,2]
[405923470,1771416650523,-2264.0,0.00014735,2]
[405923471,1771416650534,-500.0,0.00014795,2]
[405923472,1771416650543,-477.33821748,0.00014795,2]
[405923473,1771416650552,-500.0,0.00014795,2]
[405923474,1771416650565,-1000.0,0.00014795,2]
[405923475,1771416650581,-1512.08661125,0.00014795,2]
[405923476,1771416650592,-1500.0,0.00014795,2]
[405923477,1771416650601,-1500.0,0.00014795,2]
[405923478,1771416650611,-508.58168582,0.00014795,2]
[405923479,1771416650622,-512.09053139,0.00014795,2]
[405923480,1771416650632,-1500.0,0.00014795,2]
[405923481,1771416650644,-1500.0,0.00014795,2]
[405923482,1771416650654,-506.41325356,0.00014795,2]
[405923483,1771416650663,-187.09841863,0.00014795,2]
[405923484,1771416650673,-1500.0,0.00014795,2]
[405923485,1771416650684,-1500.0,0.00014795,2]
[405923486,1771416650694,-1037.4625703,0.00014795,2]
[405923487,1771416650704,-1500.0,0.00014795,2]
[405923488,1771416650714,-1500.0,0.00014795,2]
[405923489,1771416650723,-534.53110943,0.00014795,2]
[405923490,1771416650736,-1500.0,0.00014795,2]
[405923491,1771416650747,-1500.0,0.00014795,2]
[405923492,1771416650757,-250.0,0.00015,2]
[405923493,1771416650768,-155.0,0.00015067,2]
[405923494,1771416650778,-900.0,0.00015068,2]
[405923495,1771416650788,-608.53,0.00015117,2]
[405923496,1771416650798,-608.53,0.00015117,2]
[405923497,1771416650809,-608.53,0.00015117,2]
[405923498,1771416650818,-608.53,0.00015117,2]
[405923499,1771416650827,-608.60630866,0.00015117,2]
[405923500,1771416650838,-1179.65,0.00015117,2]
[405923501,1771416650848,-1179.65,0.00015117,2]
[405923502,1771416650859,-1179.65,0.00015117,2]
[405923503,1771416650870,-1179.65,0.00015117,2]
[405923504,1771416650883,-1179.68764413,0.00015117,2]
[405923505,1771416650892,-1796.07291572,0.00015332,2]
[405923506,1771416650902,-1465.77482029,0.00015342,2]
[405923507,1771416650914,-2000.0,0.00015342,2]
[405923508,1771416650924,-1960.08113192,0.00015342,2]
[405923509,1771416650935,-2000.0,0.00015342,2]
[405923510,1771416650944,-2000.0,0.00015342,2]
[405923511,1771416650956,-1191.23979414,0.00015342,2]
[405923512,1771416650967,-1830.45995604,0.00015342,2]
[405923513,1771416650979,-1721.59968024,0.00015342,2]
[405923514,1771416650988,-605.03701467,0.00015342,2]
[405923515,1771416650997,-2000.0,0.00015342,2]
[405923516,1771416651008,-60330.40230329,0.00015359,2]
[405923517,1771416651017,-2251.56583335,0.00015493,2]
[405923518,1771416651027,-150.0,0.00015552,2]
[405923519,1771416651036,-150.0,0.00015552,2]
[405923520,1771416651046,-150.0,0.00015552,2]
[405923521,1771416651056,-150.0,0.00015552,2]
[405923522,1771416651068,-150.0,0.00015552,2]
[405923523,1771416651078,-150.0,0.00015552,2]
[405923524,1771416651087,-162.74,0.00015552,2]
[405923525,1771416651097,-1164.0,0.00015552,2]
[405923526,1771416651107,-3534.442,0.00015552,2]
[405923527,1771416651116,-638.503,0.00015552,2]
[405923528,1771416651126,-1351.534,0.00015552,2]
[405923529,1771416651137,-267.79,0.00015552,2]
[405923530,1771416651147,-1275.0,0.00015552,2]
[405923531,1771416651156,-1219.539,0.00015552,2]
[405923532,1771416651166,-2452.0,0.00015552,2]
[405923533,1771416651175,-5973.0,0.00015552,2]
[405923534,1771416651184,-412.0,0.00015552,2]
[405923535,1771416651194,-801.75028282,0.0001589,2]
[405923536,1771416651204,-1783.85919121,0.0001589,2]
[405923537,1771416651213,-1534.2126926,0.0001589,2]
[405923538,1771416651223,-2500.0,0.0001589,2]
[405923539,1771416651233,-506.0,0.0001605,2]
[405923540,1771416651242,-60330.40230329,0.00016122,2]
[405923541,1771416651253,-552.47642339,0.00016217,7]
[405923542,1771416651262,-47371.0,0.0001638,2]
[405923543,1771416651273,-173.62051493,0.00016385,2]
[405923544,1771416651283,-2836.0,0.000164,2]
[405923545,1771416651292,-155.0,0.00016436,2]
[405923546,1771416651303,-307.2,0.00016438,2]
[405923547,1771416651312,-900.0,0.00016438,2]
[405923548,1771416651321,-3000.0,0.00016438,2]
[405923549,1771416651331,-2251.56583335,0.00016696,2]
[405923550,1771416651340,-167.38,0.00016712,2]
[405923551,1771416651350,-2836.0,0.0001672,2]
[405923552,1771416651359,-2836.0,0.0001672,2]
[405923553,1771416651368,-2828.0,0.0001672,2]
[405923554,1771416651377,-60330.40230329,0.00016886,2]
[405923555,1771416651386,-47371.0,0.0001692,2]
[405923556,1771416651396,-3500.0,0.00016986,2]
[405923557,1771416651405,-308.45119159,0.00016999,2]
[405923558,1771416651415,-300.0,0.00017,2]
[405923559,1771416651424,-506.0,0.00017005,2]
[405923560,1771416651433,-2836.0,0.0001704,2]
[405923561,1771416651441,-842.0,0.0001736,2]
[405923562,1771416651451,-2836.0,0.0001736,2]
[405923563,1771416651460,-47371.0,0.0001746,2]
[405923564,1771416651469,-4000.0,0.00017534,2]
[405923565,1771416651478,-160.0,0.0001768,2]
[405923566,1771416651487,-160.0,0.0001768,2]
[405923567,1771416651496,-266.49,0.00017698,2]
[405923568,1771416651507,-800.0,0.00017808,2]
[405923569,1771416651517,-250.0,0.00017808,20]
[405923570,1771416651527,-250.0,0.00017808,20]
[405923571,1771416651535,-250.0,0.00017808,20]
[405923572,1771416651545,-250.0,0.00017808,20]
[405923573,1771416651555,-250.0,0.00017808,20]
[405923574,1771416651564,-250.0,0.00017808,20]
[405923575,1771416651574,-250.0,0.00017808,20]
[405923576,1771416651583,-175.581631,0.00017808,20]
[405923577,1771416651593,-200.0,0.00017856,2]
[405923578,1771416651602,-193.70452932,0.000179,2]
[405923579,1771416651611,-25000.0,0.000179,3]
[405923580,1771416651622,-2251.56583335,0.000179,2]
[405923581,1771416651632,-25635.78322112,0.000179,2]
[405923582,1771416651642,-200.0,0.00017937,2]
[405923583,1771416651653,-506.0,0.00017959,3]
[405923584,1771416651663,-500.0,0.0001797,2]
[405923585,1771416651672,-1000.0,0.0001797,2]
[405923586,1771416651682,-500.0,0.0001797,2]
[405923587,1771416651692,-1000.0,0.0001797,2]
[405923588,1771416651701,-500.0,0.0001797,2]
[405923589,1771416651710,-1000.0,0.0001797,2]
[405923590,1771416651719,-500.0,0.0001797,2]
[405923591,1771416651728,-1000.0,0.0001797,2]
[405923592,1771416651737,-500.0,0.0001797,2]
[405923593,1771416651746,-900.0,0.0001797,2]
[405923594,1771416651755,-1000.0,0.0001797,2]
[405923595,1771416651764,-1000.0,0.0001797,2]
[405923596,1771416651773,-1602.42010233,0.0001797,2]
[405923597,1771416651783,-183.30982713,0.0001797,2]
[405923598,1771416651792,-106361.0534829,0.00017975,2]
[405923599,1771416651802,-300.0,0.00017999,2]
[405923600,1771416651811,-300.0,0.00017999,2]
[405923601,1771416651820,-666.0,0.00017999,2]
[405923602,1771416651829,-300.0,0.00017999,2]
[405923603,1771416651839,-294.37058652,0.00017999,2]
[405923604,1771416651848,-3820437.61860549,0.00018,2]
[405923605,1771416651857,-109735.58932205,0.00018,2]
[405923606,1771416651867,-1924943.6975383,0.00018,2]
[405923607,1771416652059,-501.55444,0.00018,2]
[405923608,1771416652122,-20908.54417487,0.00018,2]
[405923609,1771416652243,-218.37761042,0.00010367,2]
[405923610,1771416652253,-40.84344959,0.0001368,2]
[405923611,1771416652265,-134.4350253,0.0001368,2]
[405923612,1771416652274,-2356.20110115,0.000179,2]
[405923613,1771416652284,-5453.36277355,0.00018,2]
[405923614,1771416652296,-265754.29991716,0.00018,2]
[405923615,1771416652314,-4757.94569196,0.00018,2]
[405923616,1771416652344,-175.27847489,0.000179,2]
[405923617,1771416652354,-56540.9186006,0.00018,2]
[405923618,1771416652364,-405.8537147,0.00018,2]
[405923619,1771416652375,-8646.8970823,0.00018,2]
[405923620,1771416652389,-450.0,0.00018,2]
[405923621,1771416652401,-912.236,0.00018,2]
[405923622,1771416652415,-4929.02520787,0.00018,2]
[405923628,1771417832161,-785.05,8.183e-05,2]
[405923629,1771417832171,-250.0,8.201e-05,2]
[405923631,1771417832180,-409.17,8.219e-05,2]
[405923633,1771417832190,-1274.0,8.675e-05,2]
[405923634,1771417832210,-409.17,8.676e-05,2]
[405923635,1771417832223,-174.97106768,8.676e-05,2]
[405923636,1771417832232,-284.0,8.712e-05,2]
[405923637,1771417832242,-1055.39643327,8.73e-05,2]
[405923638,1771417832257,-218.60356673,8.73e-05,2]
[405923639,1771417832267,-350.52812369,8.747e-05,2]
[405923640,1771417832283,-560.87669946,8.747e-05,2]
[405923641,1771417832296,-288.59517685,8.747e-05,2]
[405923642,1771417832308,-300.0,8.747e-05,2]
[405923643,1771417832318,-150.0,8.747e-05,2]
[405923644,1771417832328,-500.0,8.748e-05,2]
[405923645,1771417832339,-293.37063665,8.748e-05,2]
[405923646,1771417832350,-260.0244547,8.748e-05,2]
[405923647,1771417832361,-634.52199724,8.748e-05,2]
[405923648,1771417832372,-563.18241587,8.748e-05,2]
[405923649,1771417832383,-510.46244449,8.748e-05,2]
[405923651,1771417832392,-510.46244449,8.748e-05,2]
[405923653,1771417832401,-510.46244449,8.748e-05,2]
[405923655,1771417832410,-510.46244449,8.748e-05,2]
[405923657,1771417832420,-510.46244449,8.748e-05,2]
[405923659,1771417832430,-510.46244449,8.748e-05,2]
[405923661,1771417832439,-510.46244449,8.748e-05,2]
[405923662,1771417832449,-510.46244449,8.748e-05,2]
[405923663,1771417832458,-510.46244449,8.748e-05,2]
[405923664,1771417832467,-510.46244449,8.748e-05,2]
[405923665,1771417832478,-510.46244449,8.748e-05,2]
[405923666,1771417832487,-510.46244449,8.748e-05,2]
[405923667,1771417832498,-510.46244449,8.748e-05,2]
[405923668,1771417832509,-510.46244449,8.748e-05,2]
[405923669,1771417832520,-510.46244449,8.748e-05,2]
[405923670,1771417832532,-510.46244449,8.748e-05,2]
[405923671,1771417832542,-510.46244449,8.748e-05,2]
[405923672,1771417832551,-510.46244449,8.748e-05,2]
[405923673,1771417832562,-510.46244449,8.748e-05,2]
[405923674,1771417832572,-510.46244449,8.748e-05,2]
[405923675,1771417832581,-510.46244449,8.748e-05,2]
[405923676,1771417832591,-510.46244449,8.748e-05,2]
[405923677,1771417832602,-510.46244449,8.748e-05,2]
[405923678,1771417832612,-510.46244449,8.748e-05,2]
[405923679,1771417832621,-510.46244449,8.748e-05,2]
[405923680,1771417832632,-510.46244449,8.748e-05,2]
[405923681,1771417832642,-291.82490105,8.748e-05,2]
[405923685,1771417838291,-218.63754344,8.748e-05,2]
[405923686,1771417838301,-510.46244449,8.748e-05,2]
[405923687,1771417838311,-510.46244449,8.748e-05,2]
[405923688,1771417838320,-510.46244449,8.748e-05,2]
[405923689,1771417838330,-510.46244449,8.748e-05,2]
[405923690,1771417838340,-510.46244449,8.748e-05,2]
[405923691,1771417838349,-510.46244449,8.748e-05,2]
[405923692,1771417838358,-510.46244449,8.748e-05,2]
[405923693,1771417838368,-510.46244449,8.748e-05,2]
[405923694,1771417838377,-510.46244449,8.748e-05,2]
[405923695,1771417838387,-510.46244449,8.748e-05,2]
[405923696,1771417838397,-510.46244449,8.748e-05,2]
[405923697,1771417838406,-510.46244449,8.748e-05,2]
[405923698,1771417838416,-510.46244449,8.748e-05,2]
[405923699,1771417838425,-510.46244449,8.748e-05,2]
[405923700,1771417838435,-510.46244449,8.748e-05,2]
[405923701,1771417838444,-510.46244449,8.748e-05,2]
[405923702,1771417838453,-510.46244449,8.748e-05,2]
[405923703,1771417838463,-510.46244449,8.748e-05,2]
[405923704,1771417838472,-510.46244449,8.748e-05,2]
[405923705,1771417838481,-510.46244449,8.748e-05,2]
[405923706,1771417838491,-510.46244449,8.748e-05,2]
[405923707,1771417838500,-510.46244449,8.748e-05,2]
[405923708,1771417838511,-510.46244449,8.748e-05,2]
[405923709,1771417838524,-510.46244449,8.748e-05,2]
[405923710,1771417838534,-510.46244449,8.748e-05,2]
[405923711,1771417838543,-510.46244449,8.748e-05,2]
[405923712,1771417838553,-510.46244449,8.748e-05,2]
[405923713,1771417838563,-500.0,8.748e-05,2]
[405923715,1771417838573,-500.0,8.748e-05,2]
[405923717,1771417838583,-500.0,8.748e-05,2]
[405923719,1771417838593,-500.0,8.748e-05,2]
[405923721,1771417838606,-500.0,8.748e-05,2]
[405923723,1771417838616,-500.0,8.748e-05,2]
[405923725,1771417838625,-500.0,8.748e-05,2]
[405923727,1771417838636,-500.0,8.748e-05,2]
[405923729,1771417838646,-500.0,8.748e-05,2]
[405923731,1771417838656,-500.0,8.748e-05,2]
[405923733,1771417838666,-500.0,8.748e-05,2]
[405923735,1771417838675,-500.0,8.748e-05,2]
[405923736,1771417838684,-500.0,8.748e-05,2]
[405923737,1771417838694,-500.0,8.748e-05,2]
[405923738,1771417838704,-500.0,8.748e-05,2]
[405923739,1771417838713,-500.0,8.748e-05,2]
[405923740,1771417838723,-500.0,8.748e-05,2]
[405923741,1771417838732,-500.0,8.748e-05,2]
[405923742,1771417838742,-500.0,8.748e-05,2]
[405923743,1771417838752,-500.0,8.748e-05,2]
[405923744,1771417838762,-500.0,8.748e-05,2]
[405923745,1771417838771,-500.0,8.748e-05,2]
[405923746,1771417838783,-500.0,8.748e-05,2]
[405923747,1771417838793,-500.0,8.748e-05,2]
[405923748,1771417838802,-500.0,8.748e-05,2]
[405923749,1771417838811,-500.0,8.748e-05,2]
[405923750,1771417838821,-500.0,8.748e-05,2]
[405923751,1771417838830,-500.0,8.748e-05,2]
[405923752,1771417838840,-498.39940112,8.748e-05,2]
[405923753,1771417838849,-500.0,8.748e-05,2]
[405923754,1771417838859,-500.0,8.748e-05,2]
[405923755,1771417838868,-500.0,8.748e-05,2]
[405923756,1771417838878,-500.0,8.748e-05,2]
[405923757,1771417838888,-500.0,8.748e-05,2]
[405923758,1771417838897,-3500000.0,8.749e-05,2]
[405923759,1771417838907,-174.97106768,8.75e-05,2]
[405923760,1771417838916,-1570.80073411,8.75e-05,2]
[405923761,1771417838925,-2500.0,8.75e-05,2]
[405923762,1771417838935,-1113.546,8.771e-05,2]
[405923763,1771417838944,-180.591,8.771e-05,2]
[405923764,1771417838953,-1274.0,8.785e-05,2]
[405923765,1771417838962,-168.0,8.794e-05,2]
[405923766,1771417838972,-5000.0,8.81e-05,2]
[405923767,1771417838982,-5000.0,8.833e-05,2]
[405923768,1771417838992,-5000.0,8.833e-05,2]
[405923769,1771417839001,-5000.0,8.833e-05,2]
[405923770,1771417839010,-1274.0,8.839e-05,2]
[405923771,1771417839020,-553.95,8.849e-05,2]
[405923772,1771417839029,-1296.406,8.85e-05,2]
[405923773,1771417839038,-1274.0,8.894e-05,2]
[405923774,1771417839047,-1274.0,8.949e-05,2]
[405923775,1771417839057,-500.0,8.95e-05,2]
[405923776,1771417839067,-10000.0,8.95e-05,2]
[405923777,1771417839077,-250.0,9.002e-05,2]
[405923778,1771417839086,-250.0,9.002e-05,2]
[405923779,1771417839096,-1274.0,9.004e-05,2]
[405923780,1771417839105,-1274.0,9.059e-05,2]
[405923781,1771417839115,-1274.0,9.113e-05,2]
[405923782,1771417839124,-553.95,9.123e-05,2]
[405923783,1771417839134,-409.17,9.132e-05,2]
[405923784,1771417839143,-82361.14,9.166e-05,2]
[405923785,1771417839153,-1274.0,9.168e-05,2]
[405923786,1771417839163,-785.05,9.206e-05,2]
[405923787,1771417839176,-1274.0,9.223e-05,2]
[405923788,1771417839186,-1274.0,9.278e-05,2]
[405923789,1771417839195,-1274.0,9.333e-05,2]
[405923790,1771417839205,-1274.0,9.387e-05,2]
[405923791,1771417839214,-553.95,9.397e-05,2]
[405923792,1771417839224,-1274.0,9.442e-05,2]
[405923793,1771417839234,-538.2049,9.442e-05,2]
[405923794,1771417839243,-32853.2111,9.443e-05,2]
[405923795,1771417839253,-1274.0,9.497e-05,2]
[405923796,1771417839262,-1274.0,9.552e-05,2]
[405923797,1771417839272,-404.89423624,9.57e-05,2]
[405923798,1771417839282,-409.17,9.589e-05,2]
[405923799,1771417839291,-1274.0,9.607e-05,2]
[405923800,1771417839301,-1680.0,9.622e-05,2]
[405923801,1771417839310,-420.0,9.622e-05,2]
[405923802,1771417839320,-255.0,9.622e-05,2]
[405923803,1771417839330,-5000.0,9.648e-05,2]
[405923804,1771417839339,-1274.0,9.661e-05,2]
[405923805,1771417839348,-553.95,9.671e-05,2]
[405923806,1771417839358,-1274.0,9.716e-05,2]
[405923807,1771417839367,-616.0,9.768e-05,2]
[405923808,1771417839381,-1274.0,9.771e-05,2]
[405923809,1771417839391,-1274.0,9.826e-05,2]
[405923810,1771417839400,-204.304563,9.848e-05,2]
[405923811,1771417839410,-1274.0,9.88e-05,2]
[405923812,1771417839419,-1292.0,9.935e-05,2]
[405923813,1771417839428,-553.95,9.945e-05,2]
[405923814,1771417839438,-151.0,0.0001,2]
[405923815,1771417839448,-151.0,0.0001,2]
[405923816,1771417839457,-151.0,0.0001,2]
[405923817,1771417839467,-151.0,0.0001,2]
[405923818,1771417839477,-151.0,0.0001,2]
[405923819,1771417839487,-151.0,0.0001,2]
[405923820,1771417839497,-151.0,0.0001,2]
[405923821,1771417839507,-151.0,0.0001,2]
[405923822,1771417839516,-151.0,0.0001,2]
[405923823,1771417839530,-151.0,0.0001,2]
[405923824,1771417839539,-151.0,0.0001,2]
[405923825,1771417839549,-151.0,0.0001,2]
[405923826,1771417839558,-151.0,0.0001,2]
[405923827,1771417839572,-151.0,0.0001,2]
[405923828,1771417839582,-151.0,0.0001,2]
[405923829,1771417839592,-151.0,0.0001,2]
[405923830,1771417839603,-151.0,0.0001,2]
[405923831,1771417839612,-151.0,0.0001,2]
[405923832,1771417839622,-151.0,0.0001,2]
[405923833,1771417839631,-151.0,0.0001,2]
[405923834,1771417839641,-151.0,0.0001,2]
[405923835,1771417839651,-151.0,0.0001,2]
[405923836,1771417839660,-151.0,0.0001,2]
[405923837,1771417839670,-151.0,0.0001,2]
[405923838,1771417839679,-151.0,0.0001,2]
[405923839,1771417839690,-151.0,0.0001,2]
[405923840,1771417839700,-151.0,0.0001,2]
[405923841,1771417839710,-151.0,0.0001,2]
[405923842,1771417839720,-151.0,0.0001,2]
[405923843,1771417839730,-151.0,0.0001,2]
[405923844,1771417839740,-151.0,0.0001,2]
[405923845,1771417839750,-175.27847489,0.0001,2]
[405923846,1771417839759,-1889.54156641,0.0001,2]
[405923847,1771417839771,-1889.54156641,0.0001,2]
[405923848,1771417839780,-409.17,0.00010046,2]
[405923849,1771417839789,-359.0,0.00010056,2]
[405923850,1771417839799,-554.00615053,0.00010219,2]
[405923851,1771417839808,-785.05,0.00010229,2]
[405923852,1771417839817,-21159.47305191,0.00010296,2]
[405923853,1771417839827,-245.86778969,0.00010367,2]
[405923854,1771417839836,-307.32831336,0.00010367,2]
[405923855,1771417839846,-500.0,0.00010367,2]
[405923856,1771417839855,-500.0,0.00010367,2]
[405923857,1771417839864,-500.0,0.00010367,2]
[405923858,1771417839874,-500.92647612,0.00010367,2]
[405923859,1771417839884,-500.0,0.00010367,2]
[405923860,1771417839893,-500.0,0.00010367,2]
[405923861,1771417839903,-500.0,0.00010367,2]
[405923862,1771417839912,-500.0,0.00010367,2]
[405923863,1771417839923,-500.0,0.00010367,2]
[405923864,1771417839932,-500.0,0.00010367,2]
[405923865,1771417839943,-500.0,0.00010367,2]
[405923866,1771417839953,-157.29853366,0.00010367,2]
[405923867,1771417839963,-167.33946284,0.00010367,2]
[405923868,1771417839973,-150.99,0.00010475,2]
[405923869,1771417839983,-9999.99,0.00010475,2]
[405923870,1771417839992,-409.17,0.00010502,2]
[405923871,1771417840003,-1500.0,0.00010568,2]
[405923872,1771417840013,-2351.0,0.00010584,2]
[405923873,1771417840022,-587.0,0.00010584,2]
[405923874,1771417840032,-433.0,0.00010584,2]
[405923875,1771417840041,-269.09940998,0.000107,2]
[405923876,1771417840051,-333.11,0.00010863,2]
[405923877,1771417840060,-1000.0,0.00010915,2]
[405923878,1771417840070,-1000.0,0.00010915,2]
[405923879,1771417840079,-1000.0,0.00010915,2]
[405923880,1771417840088,-1000.0,0.00010915,2]
[405923881,1771417840098,-409.17,0.00010959,2]
[405923882,1771417840107,-9452.37121348,0.00011,2]
[405923883,1771417840117,-317.85855574,0.00011195,2]
[405923884,1771417840127,-415.88212321,0.00011232,2]
[405923885,1771417840136,-11479.0,0.00011233,2]
[405923886,1771417840146,-2000.0,0.00011233,2]
[405923887,1771417840164,-785.05,0.00011252,2]
[405923888,1771417840175,-409.17,0.00011416,2]
[405923889,1771417840184,-2000.0,0.00011433,2]
[405923890,1771417840194,-1500.0,0.00011463,2]
[405923891,1771417840203,-1509.709324,0.00011463,2]
[405923892,1771417840213,-1195.89534376,0.00011463,2]
[405923893,1771417840222,-2000.0,0.00011633,2]
[405923894,1771417840232,-3292.0,0.00011643,2]
[405923895,1771417840242,-823.0,0.00011643,2]
[405923897,1771417840252,-736.0,0.00011643,2]
[405923898,1771417840262,-2000.0,0.00011833,2]
[405923899,1771417840272,-409.17,0.00011872,2]
[405923900,1771417840282,-1582.1457329,0.000119,2]
[405923901,1771417840292,-2000.0,0.00012011,2]
[405923902,1771417840302,-2000.0,0.00012033,2]